fUST/lending_fUST_20250826
["ID","MTS","AMOUNT","RATE_DAILY","PERIOD"]
[381384699,1756174245581,-983.95,0.00041095,30]
[381384700,1756174245591,-661.55,0.00041095,30]
[381384701,1756174245601,-151.0,0.00041095,15]
[381384702,1756174245611,-480.0,0.00041095,30]
[381384703,1756174245621,-1122.86,0.00041095,30]
[381384704,1756174245633,-825.05,0.00041095,30]
[381384705,1756174245643,-1587.66,0.00041095,30]
[381384706,1756174245652,-683.37,0.00041095,30]
[381384707,1756174245664,-878.11,0.00041095,30]
[381384708,1756174245673,-480.0,0.00041095,30]
[381384709,1756174245682,-480.95006938,0.00041095,30]
[381384710,1756174245692,-480.0,0.00041095,30]
[381384711,1756174245702,-547.32,0.00041095,30]
[381384712,1756174245711,-885.79,0.00041095,30]
[381384713,1756174245720,-480.0,0.00041095,30]
[381384714,1756174245730,-1000.0,0.00041095,30]
[381384715,1756174245739,-572.94,0.00041095,30]
[381384716,1756174245749,-590.82,0.00041095,30]
[381384717,1756174245758,-938.8,0.00041095,30]
[381384718,1756174245767,-823.44,0.00041095,30]
[381384719,1756174245777,-480.0,0.00041095,30]
[381384720,1756174245786,-480.0,0.00041095,30]
[381384721,1756174245796,-480.0,0.00041095,30]
[381384722,1756174245806,-589.53,0.00041095,30]
[381384723,1756174245815,-480.0,0.00041095,30]
[381384724,1756174245824,-480.0,0.00041095,30]
[381384725,1756174245833,-480.0,0.00041095,30]
[381384726,1756174245842,-3150.9,0.00041095,30]
[381384727,1756174245852,-3224.11,0.00041095,30]
[381384728,1756174245860,-480.0,0.00041095,30]
[381384729,1756174245870,-735.85,0.00041095,30]
[381384730,1756174245880,-480.0,0.00041095,30]
[381384731,1756174245889,-480.0,0.00041095,30]
[381384732,1756174245899,-480.0,0.00041095,30]
[381384733,1756174245914,-480.97138187,0.00041095,30]
[381384734,1756174245926,-480.0,0.00041095,30]
[381384735,1756174245935,-480.0,0.00041095,30]
[381384736,1756174245944,-480.0,0.00041095,30]
[381384737,1756174245954,-515.93,0.00041095,30]
[381384738,1756174245965,-480.0,0.00041095,30]
[381384739,1756174245974,-578.95,0.00041095,30]
[381384740,1756174245984,-480.0,0.00041095,30]
[381384741,1756174245993,-480.0,0.00041095,30]
[381384742,1756174246004,-1319.56,0.00041095,30]
[381384743,1756174246015,-968.3,0.00041095,30]
[381384744,1756174246025,-480.0,0.00041095,30]
[381384745,1756174246035,-480.0,0.00041095,30]
[381384746,1756174246044,-480.0,0.00041095,30]
[381384747,1756174246054,-666.78,0.00041095,30]
[381384748,1756174246063,-625.84,0.00041095,30]
[381384749,1756174246074,-536.35,0.00041095,30]
[381384750,1756174246083,-480.0,0.00041095,30]
[381384751,1756174246093,-1357.56,0.00041095,30]
[381384752,1756174246103,-480.0,0.00041095,30]
[381384753,1756174246113,-946.95,0.00041095,30]
[381384754,1756174246123,-359.40965329,0.00041095,30]
[381384755,1756174246134,-480.0,0.00041095,30]
[381384756,1756174246144,-480.95009214,0.00041095,30]
[381384757,1756174246154,-616.06,0.00041095,30]
[381384758,1756174246163,-992.09,0.00041095,30]
[381384759,1756174246174,-871.12,0.00041095,30]
[381384760,1756174246187,-480.0,0.00041095,30]
[381384761,1756174246208,-852.3,0.00041095,30]
[381384762,1756174246220,-483.42,0.00041095,30]
[381384763,1756174246231,-480.0,0.00041095,30]
[381384764,1756174246310,-778.35,0.00041095,30]
[381384765,1756174246320,-480.0,0.00041095,30]
[381384766,1756174246330,-480.0,0.00041095,30]
[381384767,1756174246340,-897.44,0.00041095,30]
[381384768,1756174246349,-4076.35,0.00041095,30]
[381384769,1756174246358,-480.0,0.00041095,30]
[381384770,1756174246367,-668.61,0.00041095,30]
[381384771,1756174246376,-480.0,0.00041095,30]
[381384772,1756174246387,-480.0,0.00041095,30]
[381384773,1756174246396,-480.0,0.00041095,30]
[381384774,1756174246406,-1157.16,0.00041095,30]
[381384775,1756174246415,-480.0,0.00041095,30]
[381384776,1756174246423,-1759.65,0.00041095,30]
[381384777,1756174246432,-520.17,0.00041095,30]
[381384778,1756174246442,-1077.19,0.00041095,30]
[381384779,1756174246451,-772.6,0.00041095,30]
[381384780,1756174246460,-1499.22,0.00041095,30]
[381384781,1756174246469,-530.32,0.00041095,30]
[381384783,1756174246478,-480.0,0.00041095,30]
[381384785,1756174246487,-481.05877966,0.00041095,30]
[381384787,1756174246496,-480.0,0.00041095,30]
[381384788,1756174246505,-1843.62,0.00041095,30]
[381384789,1756174246514,-480.0,0.00041095,30]
[381384790,1756174246523,-480.0,0.00041095,30]
[381384791,1756174246535,-1093.47,0.00041095,30]
[381384792,1756174246545,-536.15,0.00041095,30]
[381384793,1756174246555,-480.87995971,0.00041095,2]
[381384794,1756174246564,-1121.11,0.00041095,30]
[381384795,1756174246574,-480.0,0.00041095,30]
[381384796,1756174246583,-583.23,0.00041095,30]
[381384797,1756174246593,-1792.9,0.00041095,30]
[381384798,1756174246603,-480.0,0.00041095,30]
[381384799,1756174246614,-613.29,0.00041095,30]
[381384800,1756174246625,-480.0,0.00041095,30]
[381384801,1756174246637,-480.0,0.00041095,30]
[381384802,1756174246646,-480.0,0.00041095,30]
[381384803,1756174246656,-480.0,0.00041095,30]
[381384804,1756174246666,-588.24,0.00041095,30]
[381384805,1756174246677,-480.0,0.00041095,30]
[381384806,1756174246690,-604.06,0.00041095,30]
[381384807,1756174246701,-1392.95,0.00041095,30]
[381384808,1756174246712,-480.0,0.00041095,30]
[381384809,1756174246722,-2882.03,0.00041095,30]
[381384810,1756174246731,-584.16,0.00041095,30]
[381384811,1756174246741,-480.0,0.00041095,30]
[381384812,1756174246750,-2181.84,0.00041095,30]
[381384813,1756174246759,-480.0,0.00041095,30]
[381384814,1756174246768,-927.5,0.00041095,30]
[381384815,1756174246778,-1830.97,0.00041095,30]
[381384816,1756174246787,-670.88,0.00041095,30]
[381384817,1756174246797,-480.0,0.00041095,30]
[381384818,1756174246806,-480.0,0.00041095,30]
[381384819,1756174246815,-480.0,0.00041095,30]
[381384820,1756174246825,-480.0,0.00041095,30]
[381384821,1756174246835,-810.81,0.00041095,30]
[381384822,1756174246844,-1822.19,0.00041095,30]
[381384823,1756174246853,-667.78,0.00041095,30]
[381384824,1756174246863,-480.0,0.00041095,30]
[381384825,1756174246872,-901.13,0.00041095,30]
[381384826,1756174246881,-480.0,0.00041095,30]
[381384827,1756174246892,-480.0,0.00041095,30]
[381384828,1756174246901,-480.0,0.00041095,30]
[381384829,1756174246911,-825.06,0.00041095,30]
[381384830,1756174246920,-546.58,0.00041095,30]
[381384831,1756174246929,-1161.8,0.00041095,30]
[381384832,1756174246939,-480.0,0.00041095,30]
[381384833,1756174246948,-480.0,0.00041095,30]
[381384834,1756174246958,-742.31,0.00041095,30]
[381384835,1756174246967,-480.0,0.00041095,30]
[381384836,1756174246977,-1363.65,0.00041095,30]
[381384837,1756174246986,-480.94253488,0.00041095,30]
[381384838,1756174246995,-480.0,0.00041095,30]
[381384839,1756174247006,-480.0,0.00041095,30]
[381384840,1756174247016,-620.67,0.00041095,30]
[381384841,1756174247026,-480.0,0.00041095,30]
[381384842,1756174247036,-480.0,0.00041095,30]
[381384843,1756174247045,-1385.47,0.00041095,30]
[381384844,1756174247054,-480.0,0.00041095,30]
[381384845,1756174247064,-1431.58,0.00041095,30]
[381384846,1756174247073,-480.0,0.00041095,30]
[381384847,1756174247082,-1007.67,0.00041095,30]
[381384848,1756174247091,-495.17,0.00041095,30]
[381384849,1756174247101,-971.21,0.00041095,30]
[381384850,1756174247111,-737.13,0.00041095,30]
[381384851,1756174247120,-480.0,0.00041095,30]
[381384852,1756174247130,-248.95576416,0.00041095,30]
[381384853,1756174247146,-480.0,0.00041095,30]
[381384854,1756174247165,-480.0,0.00041095,30]
[381384855,1756174247174,-984.47,0.00041095,30]
[381384856,1756174247184,-699.5,0.00041095,30]
[381384857,1756174247193,-480.0,0.00041095,30]
[381384858,1756174247203,-709.14,0.00041095,30]
[381384859,1756174247212,-1025.3,0.00041095,30]
[381384860,1756174247221,-480.0,0.00041095,30]
[381384861,1756174247230,-480.0,0.00041095,30]
[381384862,1756174247240,-480.51946757,0.00041095,30]
[381384863,1756174247249,-676.6,0.00041095,30]
[381384864,1756174247259,-480.0,0.00041095,30]
[381384865,1756174247267,-480.0,0.00041095,30]
[381384866,1756174247276,-480.0,0.00041095,30]
[381384867,1756174247286,-611.68,0.00041095,30]
[381384868,1756174247295,-2699.24,0.00041095,30]
[381384869,1756174247304,-691.16,0.00041095,30]
[381384870,1756174247313,-1530.65,0.00041095,30]
[381384871,1756174247322,-962.23,0.00041095,30]
[381384872,1756174247332,-539.15,0.00041095,30]
[381384873,1756174247341,-506.99,0.00041095,30]
[381384874,1756174247352,-1626.22,0.00041095,30]
[381384875,1756174247361,-1337.83,0.00041095,30]
[381384876,1756174247370,-480.0,0.00041095,30]
[381384877,1756174247380,-480.0,0.00041095,30]
[381384878,1756174247390,-480.0,0.00041095,30]
[381384879,1756174247400,-480.4921985,0.00041095,30]
[381384880,1756174247409,-480.0,0.00041095,30]
[381384881,1756174247419,-1067.19,0.00041095,30]
[381384882,1756174247428,-522.92,0.00041095,30]
[381384883,1756174247437,-1070.55,0.00041095,30]
[381384884,1756174247446,-480.0,0.00041095,30]
[381384885,1756174247456,-480.0,0.00041095,30]
[381384886,1756174247466,-480.0,0.00041095,30]
[381384887,1756174247475,-843.23,0.00041095,30]
[381384888,1756174247484,-1088.0,0.00041095,7]
[381384889,1756174247494,-480.0,0.00041095,30]
[381384890,1756174247503,-1230.82,0.00041095,30]
[381384891,1756174247513,-762.24,0.00041095,30]
[381384892,1756174247522,-151.0,0.00041095,7]
[381384893,1756174247532,-202.31733087,0.00041095,7]
[381384894,1756174247543,-480.0,0.00041095,30]
[381384895,1756174247555,-1587.37,0.00041095,30]
[381384896,1756174247564,-151.0,0.00041095,7]
[381384897,1756174247580,-524.2718707,0.00041095,30]
[381384898,1756174247591,-7719.13,0.00041095,30]
[381384899,1756174247601,-1980.51,0.00041095,30]
[381384900,1756174247610,-480.0,0.00041095,30]
[381384901,1756174247621,-151.0,0.00041095,7]
[381384902,1756174247630,-152.52627049,0.00041095,7]
[381384903,1756174247641,-480.0,0.00041095,30]
[381384904,1756174247650,-480.0,0.00041095,30]
[381384905,1756174247659,-1159.62,0.00041095,30]
[381384906,1756174247669,-500.0,0.00041095,7]
[381384907,1756174247678,-713.15,0.00041095,30]
[381384908,1756174247687,-2620.03,0.00041095,30]
[381384909,1756174247697,-480.0,0.00041095,30]
[381384910,1756174247706,-480.0,0.00041095,30]
[381384911,1756174247719,-3158.49,0.00041095,30]
[381384912,1756174247728,-480.0,0.00041095,30]
[381384913,1756174247738,-554.91,0.00041095,30]
[381384914,1756174247748,-480.68514047,0.00041095,30]
[381384915,1756174247758,-480.0,0.00041095,30]
[381384916,1756174247769,-1240.84,0.00041095,30]
[381384917,1756174247779,-2104.63,0.00041095,30]
[381384918,1756174247789,-888.02,0.00041095,30]
[381384919,1756174247800,-480.0,0.00041095,30]
[381384920,1756174247810,-1523.74,0.00041095,30]
[381384921,1756174247820,-480.0,0.00041095,30]
[381384922,1756174247829,-3065.89,0.00041095,30]
[381384923,1756174247838,-480.0,0.00041095,30]
[381384924,1756174247847,-480.0,0.00041095,30]
[381384925,1756174247856,-1840.17,0.00041095,30]
[381384926,1756174247866,-480.0,0.00041095,30]
[381384927,1756174247875,-480.0,0.00041095,30]
[381384928,1756174247885,-282.1677636,0.00041095,30]
[381384929,1756174247895,-480.0,0.00041095,30]
[381384930,1756174247904,-998.33,0.00041095,30]
[381384931,1756174247913,-480.0,0.00041095,30]
[381384932,1756174247923,-480.0,0.00041095,7]
[381384933,1756174247933,-480.0,0.00041095,30]
[381384934,1756174247942,-2132.91,0.00041095,30]
[381384935,1756174247952,-480.0,0.00041095,7]
[381384936,1756174247962,-1500.0,0.00041095,28]
[381384937,1756174247972,-480.0,0.00041095,30]
[381384938,1756174247982,-1500.0,0.00041095,28]
[381384939,1756174247992,-639.74,0.00041095,30]
[381384940,1756174248002,-1500.0,0.00041095,28]
[381384941,1756174248012,-1500.0,0.00041095,28]
[381384942,1756174248021,-1500.0,0.00041095,28]
[381384943,1756174248031,-1500.0,0.00041095,28]
[381384944,1756174248041,-1500.0,0.00041095,28]
[381384945,1756174248050,-1500.0,0.00041095,28]
[381384946,1756174248059,-1500.0,0.00041095,28]
[381384947,1756174248069,-1616.619519,0.00041095,28]
[381384948,1756174248079,-480.0,0.00041095,30]
[381384949,1756174248088,-480.0,0.00041095,30]
[381384950,1756174248098,-480.0,0.00041095,30]
[381384951,1756174248107,-1282.45,0.00041095,30]
[381384952,1756174248116,-480.0,0.00041095,30]
[381384953,1756174248126,-480.0,0.00041095,30]
[381384954,1756174248136,-2504.56,0.00041095,30]
[381384955,1756174248146,-480.0,0.00041095,30]
[381384956,1756174248156,-480.0,0.00041095,30]
[381384957,1756174248165,-480.0,0.00041095,30]
[381384958,1756174248175,-480.0,0.00041095,30]
[381384959,1756174248185,-1510.68,0.00041095,30]
[381384960,1756174248195,-480.0,0.00041095,30]
[381384961,1756174248205,-480.88754783,0.00041095,30]
[381384962,1756174248216,-151.50330516,0.00041095,7]
[381384963,1756174248226,-480.0,0.00041095,30]
[381384964,1756174248236,-480.0,0.00041095,30]
[381384965,1756174248246,-151.57408213,0.00041095,7]
[381384966,1756174248255,-521.02,0.00041095,30]
[381384967,1756174248265,-480.0,0.00041095,30]
[381384968,1756174248275,-480.0,0.00041095,30]
[381384969,1756174248286,-480.0,0.00041095,30]
[381384970,1756174248296,-480.85295909,0.00041095,30]
[381384971,1756174248306,-480.0,0.00041095,30]
[381384972,1756174248317,-480.0,0.00041095,30]
[381384973,1756174248327,-653.39,0.00041095,30]
[381384974,1756174248336,-1167.62,0.00041095,30]
[381384975,1756174248346,-7098.96,0.00041095,30]
[381384976,1756174248356,-480.0,0.00041095,30]
[381384977,1756174248366,-640.4,0.00041095,30]
[381384978,1756174248376,-480.0,0.00041095,30]
[381384979,1756174248387,-1678.18,0.00041095,30]
[381384980,1756174248396,-480.0,0.00041095,30]
[381384981,1756174248406,-480.0,0.00041095,30]
[381384982,1756174248416,-480.0,0.00041095,30]
[381384983,1756174248426,-3098.72,0.00041095,30]
[381384984,1756174248436,-731.11,0.00041095,30]
[381384985,1756174248451,-480.0,0.00041095,30]
[381384986,1756174248461,-877.78,0.00041095,30]
[381384987,1756174248471,-480.0,0.00041095,30]
[381384988,1756174248482,-1316.68,0.00041095,30]
[381384989,1756174248492,-568.4,0.00041095,30]
[381384990,1756174248502,-480.0,0.00041095,30]
[381384991,1756174248512,-480.0,0.00041095,30]
[381384992,1756174248522,-480.0,0.00041095,30]
[381384993,1756174248535,-1249.81,0.00041095,30]
[381384994,1756174248545,-480.0,0.00041095,30]
[381384995,1756174248556,-1840.81,0.00041095,30]
[381384996,1756174248566,-681.18,0.00041095,30]
[381384997,1756174248578,-480.0,0.00041095,30]
[381384998,1756174248588,-481.43854432,0.00041095,30]
[381384999,1756174248598,-480.0,0.00041095,30]
[381385000,1756174248608,-2764.97,0.00041095,30]
[381385001,1756174248619,-480.0,0.00041095,30]
[381385002,1756174248630,-480.0,0.00041095,30]
[381385003,1756174248640,-842.28,0.00041095,30]
[381385004,1756174248650,-1540.49,0.00041095,30]
[381385005,1756174248660,-712.29,0.00041095,30]
[381385006,1756174248671,-696.41,0.00041095,30]
[381385007,1756174248680,-480.0,0.00041095,30]
[381385008,1756174248690,-488.77755398,0.00041095,30]
[381385009,1756174248700,-480.0,0.00041095,30]
[381385010,1756174248712,-480.0,0.00041095,30]
[381385011,1756174248722,-1339.37,0.00041095,120]
[381385012,1756174248732,-1030.05,0.00041095,30]
[381385013,1756174248742,-480.0,0.00041095,30]
[381385014,1756174248752,-480.0,0.00041095,30]
[381385015,1756174248762,-490.35,0.00041095,30]
[381385016,1756174248773,-1514.39,0.00041095,30]
[381385017,1756174248783,-194.57349131,0.00041095,30]
[381385018,1756174248794,-855.77,0.00041095,30]
[381385019,1756174248804,-600.92,0.00041095,30]
[381385020,1756174248814,-480.0,0.00041095,30]
[381385021,1756174248823,-603.53,0.00041095,30]
[381385022,1756174248835,-1409.81,0.00041095,30]
[381385023,1756174248845,-480.0,0.00041095,30]
[381385024,1756174248856,-480.0,0.00041095,30]
[381385025,1756174248866,-480.0,0.00041095,30]
[381385026,1756174248876,-480.0,0.00041095,30]
[381385027,1756174248886,-387.73924535,0.00041095,30]
[381385028,1756174248898,-480.0,0.00041095,30]
[381385029,1756174248908,-967.91,0.00041095,30]
[381385030,1756174248918,-480.0,0.00041095,30]
[381385031,1756174248929,-480.0,0.00041095,30]
[381385032,1756174248939,-678.09,0.00041095,30]
[381385033,1756174248949,-480.0,0.00041095,30]
[381385034,1756174248959,-480.0,0.00041095,30]
[381385035,1756174248970,-2153.49,0.00041095,30]
[381385036,1756174248980,-480.0,0.00041095,30]
[381385037,1756174248991,-480.0,0.00041095,30]
[381385038,1756174249002,-480.0,0.00041095,30]
[381385039,1756174249012,-774.65,0.00041095,30]
[381385040,1756174249023,-480.0,0.00041095,30]
[381385041,1756174249033,-480.0,0.00041095,30]
[381385042,1756174249044,-11113.97,0.00041095,30]
[381385043,1756174249055,-949.84,0.00041095,30]
[381385044,1756174249065,-1291.79,0.00041095,30]
[381385045,1756174249075,-370.12231317,0.00041095,30]
[381385046,1756174249084,-480.0,0.00041095,30]
[381385047,1756174249094,-14647.29,0.00041095,30]
[381385048,1756174249104,-526.37,0.00041095,30]
[381385049,1756174249114,-271.27146236,0.00041095,30]
[381385050,1756174249123,-480.0,0.00041095,30]
[381385051,1756174249136,-2704.05,0.00041095,30]
[381385052,1756174249146,-3849.32,0.00041095,30]
[381385053,1756174249157,-989.44,0.00041095,30]
[381385054,1756174249167,-480.0,0.00041095,30]
[381385055,1756174249179,-480.0,0.00041095,30]
[381385056,1756174249190,-2269.96,0.00041095,30]
[381385057,1756174249201,-480.0,0.00041095,30]
[381385058,1756174249211,-1227.76,0.00041095,30]
[381385059,1756174249222,-893.9,0.00041095,30]
[381385060,1756174249232,-373.88485049,0.00041095,30]
[381385061,1756174249243,-1259.71,0.00041095,30]
[381385062,1756174249254,-480.0,0.00041095,30]
[381385063,1756174249268,-672.74,0.00041095,30]
[381385064,1756174249279,-1433.67,0.00041095,30]
[381385065,1756174249290,-480.0,0.00041095,30]
[381385066,1756174249300,-535.07,0.00041095,30]
[381385067,1756174249311,-3210.92,0.00041095,30]
[381385068,1756174249320,-3764.74,0.00041095,30]
[381385069,1756174249330,-9275.55,0.00041095,30]
[381385070,1756174249340,-480.0,0.00041095,30]
[381385071,1756174249349,-2551.21,0.00041095,30]
[381385072,1756174249359,-480.0,0.00041095,30]
[381385073,1756174249369,-1077.83,0.00041095,30]
[381385074,1756174249379,-480.0,0.00041095,30]
[381385075,1756174249390,-480.0,0.00041095,30]
[381385076,1756174249400,-926.67,0.00041095,30]
[381385077,1756174249410,-309.55972488,0.00041095,30]
[381385078,1756174249420,-2033.65,0.00041095,30]
[381385079,1756174249430,-480.0,0.00041095,30]
[381385080,1756174249440,-782.26,0.00041095,30]
[381385081,1756174249450,-480.0,0.00041095,30]
[381385082,1756174249460,-500.0,0.00041095,120]
[381385083,1756174249469,-480.0,0.00041095,30]
[381385084,1756174249480,-480.0,0.00041095,30]
[381385085,1756174249489,-461.07770077,0.00041095,30]
[381385086,1756174249498,-14017.96,0.00041095,30]
[381385087,1756174249506,-1524.15,0.00041095,30]
[381385088,1756174249516,-845.44,0.00041095,30]
[381385089,1756174249527,-480.0,0.00041095,30]
[381385090,1756174249539,-480.0,0.00041095,30]
[381385091,1756174249555,-673.61,0.00041095,30]
[381385092,1756174249565,-480.0,0.00041095,30]
[381385093,1756174249576,-559.63,0.00041095,30]
[381385094,1756174249586,-480.94475186,0.00041095,30]
[381385095,1756174249598,-1613.75,0.00041095,30]
[381385096,1756174249622,-480.0,0.00041095,30]
[381385097,1756174249632,-480.0,0.00041095,30]
[381385098,1756174249645,-1890.42,0.00041095,3]
[381385099,1756174249655,-480.0,0.00041095,30]
[381385100,1756174249664,-480.0,0.00041095,30]
[381385101,1756174249674,-1600.98,0.00041095,30]
[381385102,1756174249684,-480.0,0.00041095,30]
[381385103,1756174249694,-1799.8,0.00041095,30]
[381385104,1756174249703,-657.15,0.00041095,30]
[381385105,1756174249714,-510.0,0.00041095,30]
[381385106,1756174249724,-1831.23,0.00041095,30]
[381385107,1756174249733,-480.0,0.00041095,30]
[381385108,1756174249743,-1923.11,0.00041095,30]
[381385109,1756174249753,-8169.23,0.00041095,30]
[381385110,1756174249764,-480.0,0.00041095,30]
[381385111,1756174249774,-5364.01,0.00041095,30]
[381385112,1756174249784,-2985.88,0.00041095,30]
[381385113,1756174249794,-959.01,0.00041095,30]
[381385114,1756174249803,-697.17,0.00041095,30]
[381385115,1756174249813,-27644.96,0.00041095,30]
[381385116,1756174249822,-602.57,0.00041095,30]
[381385117,1756174249832,-480.0,0.00041095,30]
[381385118,1756174249843,-480.0,0.00041095,30]
[381385119,1756174249853,-152.15796144,0.00041095,7]
[381385120,1756174249863,-480.0,0.00041095,30]
[381385121,1756174249873,-608.39,0.00041095,30]
[381385122,1756174249884,-1031.15,0.00041095,30]
[381385123,1756174249894,-480.0,0.00041095,30]
[381385124,1756174249904,-938.91,0.00041095,30]
[381385125,1756174249914,-480.0,0.00041095,30]
[381385126,1756174249925,-154.27647947,0.00041095,7]
[381385127,1756174249935,-846.17,0.00041095,30]
[381385128,1756174249945,-206.67362655,0.00041095,2]
[381385129,1756174249955,-2570.02,0.00041095,30]
[381385130,1756174249964,-3069.64,0.00041095,30]
[381385131,1756174249975,-151.0,0.00041095,7]
[381385132,1756174249986,-697.15,0.00041095,30]
[381385133,1756174249999,-10652.61,0.00041095,30]
[381385134,1756174250009,-481.26294947,0.00041095,30]
[381385135,1756174250019,-480.0,0.00041095,30]
[381385136,1756174250029,-480.0,0.00041095,30]
[381385137,1756174250039,-151.0,0.00041095,7]
[381385138,1756174250049,-152.73734913,0.00041095,7]
[381385139,1756174250058,-985.59,0.00041095,30]
[381385140,1756174250068,-480.0,0.00041095,30]
[381385141,1756174250078,-1112.25,0.00041095,30]
[381385142,1756174250088,-480.0,0.00041095,30]
[381385143,1756174250098,-1260.89,0.00041095,30]
[381385144,1756174250109,-1030.43,0.00041095,30]
[381385145,1756174250119,-1611.97,0.00041095,30]
[381385146,1756174250129,-2060.26,0.00041095,30]
[381385147,1756174250140,-2891.7,0.00041095,30]
[381385148,1756174250150,-480.0,0.00041095,30]
[381385149,1756174250160,-7027.07,0.00041095,30]
[381385150,1756174250170,-480.0,0.00041095,30]
[381385151,1756174250179,-4801.27,0.00041095,30]
[381385152,1756174250188,-2981.99,0.00041095,30]
[381385153,1756174250197,-974.53,0.00041095,30]
[381385154,1756174250206,-569.68838481,0.00041095,30]
[381385155,1756174250216,-1393.5,0.00041095,30]
[381385156,1756174250226,-480.0,0.00041095,30]
[381385157,1756174250235,-237.34539601,0.00041095,30]
[381385158,1756174250244,-989.75,0.00041095,30]
[381385159,1756174250253,-3423.65,0.00041095,30]
[381385160,1756174250263,-480.0,0.00041095,30]
[381385161,1756174250272,-1312.56,0.00041095,30]
[381385162,1756174250281,-653.37,0.00041095,30]
[381385163,1756174250291,-2202.3,0.00041095,21]
[381385164,1756174250301,-2931.11,0.00041095,30]
[381385165,1756174250311,-480.0,0.00041095,30]
[381385166,1756174250321,-480.0,0.00041095,30]
[381385167,1756174250331,-481.44269748,0.00041095,30]
[381385168,1756174250340,-480.0,0.00041095,30]
[381385169,1756174250350,-480.0,0.00041095,30]
[381385170,1756174250360,-480.0,0.00041095,30]
[381385171,1756174250370,-480.0,0.00041095,30]
[381385172,1756174250379,-1040.96,0.00041095,30]
[381385173,1756174250390,-480.0,0.00041095,30]
[381385174,1756174250399,-595.36,0.00041095,30]
[381385175,1756174250409,-480.0,0.00041095,30]
[381385176,1756174250419,-564.78,0.00041095,30]
[381385177,1756174250428,-3800.15,0.00041095,30]
[381385178,1756174250438,-483.33,0.00041095,30]
[381385179,1756174250448,-481.14424702,0.00041095,30]
[381385180,1756174250458,-480.0,0.00041095,30]
[381385181,1756174250468,-8002.8,0.00041095,30]
[381385182,1756174250659,-11807.16,0.00041095,30]
[381385183,1756174250669,-2008.45,0.00041095,30]
[381385184,1756174250679,-480.0,0.00041095,30]
[381385185,1756174250688,-480.0,0.00041095,30]
[381385186,1756174250698,-151.35272218,0.00041095,7]
[381385187,1756174250708,-3345.64,0.00041095,30]
[381385188,1756174250718,-480.91262306,0.00041095,30]
[381385189,1756174250727,-1753.36,0.00041095,30]
[381385190,1756174250736,-480.0,0.00041095,30]
[381385191,1756174250746,-1581.08,0.00041095,30]
[381385192,1756174250756,-151.5442873,0.00041095,7]
[381385193,1756174250766,-480.0,0.00041095,30]
[381385194,1756174250775,-5785.04,0.00041095,30]
[381385195,1756174250785,-607.72,0.00041095,30]
[381385196,1756174250794,-1047.94,0.00041095,30]
[381385197,1756174250803,-160.0,0.00041095,5]
[381385198,1756174250813,-712.09,0.00041095,30]
[381385199,1756174250822,-2441.74,0.00041095,30]
[381385200,1756174250831,-480.0,0.00041095,30]
[381385201,1756174250841,-161.33201989,0.00041095,5]